Workbook

Sheet Лист1
A1: Школа | C1: МБОУ "СОШ № 9" НМР РТ | F1: Согласование: | G1: должность | H1: Директор
A2: Типовое примерное меню приготавливаемых блюд | G2: фамилия | H2: А.И.Мухаметзянова
A3: Возрастная категория | E3: 7-11 лет | G3: дата | H3: 7 | I3: 11 | J3: 2025
H4: день | I4: месяц | J4: год
A5: Неделя | B5: День недели | C5: Прием пищи | D5: Раздел меню | E5: Блюда | F5: Вес блюда, г | G5: Белки | H5: Жиры | I5: Углеводы | J5: Калорийность | K5: № рецептуры | L5: Цена
A6: 2 | B6: 4 | C6: Завтрак | D6: сладкое | E6: Печенье | F6: 20 | G6: 1.48 | H6: 1.88 | I6: 5.42 | J6: 62.14 | L6: 46.12
D7: доп.гарнир | E7: Омлет натуральный | F7: 50 | G7: 4.7 | H7: 8.27 | I7: 0.14 | J7: 31.5
D8: гор.блюдо | E8: Каша кукурузная молочная с маслом сливочным | F8: 155 | G8: 6.94 | H8: 7.95 | I8: 26.3 | J8: 236.73
D9: гор.напиток | E9: Чай с сахаром, с шиповником | F9: 200 | G9: 0.13 | H9: 0.02 | I9: 8.2 | J9: 34.02
D10: хлеб бел. | E10: Батон нарезной | F10: 75 | G10: 5.63 | H10: 2.6 | I10: 46.25 | J10: 198
D12: итого | F12: =F6+F7+F8+F9+F10 -> 500 | G12: =SUM(G6:G11) -> 18.88 | H12: =SUM(H6:H11) -> 20.72 | I12: =SUM(I6:I11) -> 86.31 | J12: =SUM(J6:J11) -> 562.39 | L12: =L6 -> 46.12
A13: =A6 -> 2 | B13: =B6 -> 4 | C13: Обед | D13: 1 блюдо | E13: Щи из свежей капусты с картофелем | F13: 250 | G13: 8.04 | H13: 8.00 | I13: 26.50 | J13: 211.90 | L13: 89.90
D14: 2 блюдо | E14: Биточки рыбные из минтая с молочным соусом | F14: 100 | G14: 7.38 | H14: 8.98 | I14: 22.95 | J14: 190.20
D15: гарнир | E15: Пюре картофельное | F15: 180 | G15: 5.70 | H15: 8.30 | I15: 14.90 | J15: 189.00
D16: доп.гарнир | E16: Свекла отварная | F16: 30 | G16: 0.42 | H16: 1.80 | I16: 2.48 | J16: 27.84
D17: напиток | E17: Сок фруктовый | F17: 200 | G17: 1.00 | H17: 0.00 | I17: 20.20 | J17: 84.80
D18: хлеб бел. | E18: Хлеб пшеничный | F18: 20 | G18: 1.52 | H18: 0.16 | I18: 9.84 | J18: 47
D19: хлеб черн. | E19: Хлеб ржаной | F19: 40 | G19: 2.64 | H19: 0.48 | I19: 15.84 | J19: 79.2
D21: итого | F21: =SUM(F13:F20) -> 820 | G21: =SUM(G13:G20) -> 26.7 | H21: =SUM(H13:H20) -> 27.72 | I21: =SUM(I13:I20) -> 112.71 | J21: =SUM(J13:J20) -> 829.94 | L21: =SUM(L13:L20) -> 89.90
A22: =A6 -> 2 | B22: =B6 -> 4 | C22: Итого за день: | F22: =F12+F21 -> 1320 | G22: =G12+G21 -> 45.58 | H22: =H12+H21 -> 48.44 | I22: =I12+I21 -> 199.02 | J22: =J12+J21 -> 1392.33 | L22: =L12+L21 -> 136.02
